Cogmind - Beta 14 @@@ ROGUE MODE // 2024.09.23 @ 19:42:41 Player: Zaros426 Result: Destroyed by H-71 Marshal with Heavy Mass Driver Performance ------------- Evolutions (5) 2500 Regions Visited (20) 4000 Robots Destroyed (262) 1310 Value Destroyed (10410) 10410 Prototype IDs (240) 4800 Alien Tech Used (0) 0 Bonus (10623) 10623 TOTAL SCORE: 33643 Bonus ------- High Alert Combat Kills 911 Follower Combat Kills 1992 Entered Garrisons 800 Used RIF Installer 3000 Aligned with FarCom 300 Met Data Miner 300 Used Data Conduit 3000 Pursued by Intercept 500 Friendly Fire -180 Cogmind --------- Core Integrity 0/1000 Matter 295/300 Energy 33/100 System Corruption 16% Temperature Cool (0) Movement Core (50) Location -5/Factory Parts ------- > --- POWER (1) -------- (None) > --- PROPULSION (4) --- (None) > --- UTILITY (8) ------ Advanced Visual Processing Unit Experimental Sensor Array Advanced Terrain Scan Processor System Shield Improved System Shield Relay Coupler [NC] (35) Relay Coupler [Hunter] (8) > --- WEAPON (4) ------- (None) > --- INVENTORY (5) ---- Trap Reconfigurator Supersonic Drone Bay (1/1) PSU Rigger Improved Remote Datajack Peak State ------------ > --- POWER ------------ Antimatter Reactor > --- PROPULSION ------- Improved Heavy Treads Improved Heavy Treads > --- UTILITY ---------- Improved Cooling System Huge Storage Unit Experimental Sensor Array Makeshift Transmission Jammer Experimental Thermal Shield Relay Coupler [NC] Relay Coupler [Grunt] Relay Coupler [Hunter] > --- WEAPON ----------- Improved KE Penetrator Improved KE Penetrator Improved KE Penetrator Improved KE Penetrator > --- INVENTORY -------- Improved Deuterium Engine Improved Deuterium Engine Improved Treads Advanced Heat Sink Advanced Energy Well Advanced Energy Well High-capacity Matter Pod Advanced Visual Processing Unit Advanced Terrain Scan Processor Improved Medium Armor Plating System Shield Improved System Shield Authchip [R/Combat] Authchip [R/Combat] Authchip [R/Combat] Relay Coupler [Brawler] Relay Coupler [Duelist] Trap Reconfigurator Supersonic Drone Bay PSU Rigger Improved KE Penetrator Improved KE Penetrator Improved Remote Datajack Improved Plasma Cutter Great Axe [Rating: 112] Favorites ----------- Power Cooled Ion Engine Engine Cooled Ion Engine Reactor Antimatter Reactor Propulsion Light Treads Treads Light Treads Leg Aluminum Leg Hover Unit Combat Airjet Flight Unit Improved Flight Unit Utility Relay Coupler [Hunter] Device Experimental Sensor Array Storage Huge Storage Unit Processor Improved Targeting Computer Hackware Relay Coupler [Hunter] Protection Reactive Plating Weapon Autogun Energy Gun Beam Rifle Energy Cannon Neutron Cannon Ballistic Gun Autogun Ballistic Cannon Magnetic Acceleration Cannon Launcher Rocket Launcher Special Weapon Remote Datajack Slashing Weapon Great Axe Build | -11 -10 -10 -9 -9 -9 -8 -8 -8 -8 -8 -7 -7 -7 -7 -6 -6 -6 -6 -5 -5 ------- Run | Yrd Mat Min Mat Min Exi Min Mat Gar Mat Gar Fac Gar Fac Gar Fac Low Low Dat Pro Fac Slots Evolved 10 | . . . 2 . . . 2 . . . 2 . . . 2 . . . . 2 Power . | . . . . . . . . . . . . . . . . . . . . . Propulsion 2 | . . . . . . . . . . . 1 . . . 1 . . . . . Utility 6 | . . . . . . . 2 . . . 1 . . . 1 . . . . 2 Weapon 2 | . . . 2 . . . . . . . . . . . . . . . . . Parts Attached 376 | 8 17 7 43 . . . 35 15 10 38 3 43 1 41 6 20 11 9 15 54 Power 32 | 1 3 1 7 . . . 2 2 2 3 . 1 . 1 1 1 1 2 1 3 Engine 31 | 1 3 1 7 . . . 2 2 2 3 . 1 . 1 1 1 1 2 1 2 Core . | . . . . . . . . . . . . . . . . . . . . . Reactor 1 | . . . . . . . . . . . . . . . . . . . . 1 Propulsion 63 | 2 2 1 16 . . . 12 6 2 7 1 4 . 2 1 . . . . 7 Treads 51 | 2 2 . 15 . . . 9 6 2 6 1 4 . 2 1 . . . . 1 Leg 8 | . . . . . . . 2 . . 1 . . . . . . . . . 5 Wheel . | . . . . . . . . . . . . . . . . . . . . . Hover 2 | . . 1 . . . . . . . . . . . . . . . . . 1 Flight 2 | . . . 1 . . . 1 . . . . . . . . . . . . . Utility 113 | 3 5 . 1 . . . 13 3 2 11 2 14 1 8 4 8 5 3 7 23 Device 54 | 2 1 . . . . . 3 3 . 6 . 5 1 1 3 6 4 3 7 9 Storage 11 | 1 3 . 1 . . . 3 . . 2 . 1 . . . . . . . . Processor 7 | . . . . . . . . . 1 1 1 . . . 1 . . . . 3 Hackware 27 | . 1 . . . . . . . . 2 1 5 . 7 . 2 1 . . 8 Protection 14 | . . . . . . . 7 . 1 . . 3 . . . . . . . 3 Artifact . | . . . . . . . . . . . . . . . . . . . . . Weapon 168 | 2 7 5 19 . . . 8 4 4 17 . 24 . 30 . 11 5 4 7 21 Energy Gun 9 | . . . 1 . . . . . 2 5 . . . . . . . . . 1 Energy Cannon 4 | . . . 1 . . . . . . . . 2 . . . . . . 1 . Ballistic Gun 96 | 2 5 3 14 . . . 7 4 1 3 . 13 . 20 . 5 3 1 3 12 Ballistic Cannon 6 | . 1 . 1 . . . . . . . . . . . . 2 . 2 . . Launcher 2 | . . 2 . . . . . . . . . . . . . . . . . . Special Weapon 28 | . 1 . . . . . . . . 4 . 4 . 5 . 3 2 . 3 6 Impact Weapon . | . . . . . . . . . . . . . . . . . . . . . Slashing Weapon 23 | . . . 2 . . . 1 . 1 5 . 5 . 5 . 1 . 1 . 2 Piercing Weapon . | . . . . . . . . . . . . . . . . . . . . . Special Melee Weapon . | . . . . . . . . . . . . . . . . . . . . . Unidentified Prototypes 6 | . . . 4 . . . 1 . . . . 1 . . . . . . . . Parts Lost 64 | . 3 4 2 . . . 5 7 1 12 . . . . . . . 2 . 28 Power 6 | . 1 1 . . . . . 1 . . . . . . . . . 1 . 2 Propulsion 16 | . 1 1 1 . . . . 2 . 4 . . . . . . . . . 7 Utility 16 | . . . . . . . 2 1 . 2 . . . . . . . 1 . 10 Weapon 26 | . 1 2 1 . . . 3 3 1 6 . . . . . . . . . 9 Highest Loss Streak 16 | . 2 4 1 . . . 2 7 1 3 . . . . . . . 2 . 16 To Critical Strikes . | . . . . . . . . . . . . . . . . . . . . . Average Slot Usage (%) 90 | . 97 91 99 100 100 100 95 75 62 86 92 90 92 90 85 86 86 86 86 81 Engine 8 | . 12 10 11 11 11 11 9 7 9 9 7 7 7 6 6 6 6 6 6 . Treads 17 | . 28 18 21 22 22 22 17 17 18 15 19 18 15 14 12 13 13 13 13 9 Device 5 | . 8 . . . . . 2 . . 7 . 3 7 7 8 10 6 6 8 14 Storage 8 | . 14 14 11 11 11 11 9 9 9 9 7 7 7 7 6 6 6 6 6 4 Processor 1 | . . . . . . . . . 2 10 7 1 . . 3 . . . . 1 Hackware 14 | . 5 14 11 11 11 11 7 . . 3 18 18 23 22 20 22 26 26 23 15 Protection 2 | . . . . . . . 13 8 3 3 . 1 . . . . . . . 2 Energy Gun 1 | . . . . . . . . . 8 11 . . . . . . . . . . Ballistic Gun 22 | . 21 7 38 44 44 44 35 32 3 3 . 19 15 22 13 15 17 21 12 13 Ballistic Cannon 2 | . 6 14 2 . . . . . . . . . . . . 4 3 1 13 2 Special Weapon 1 | . . . . . . . . . . 3 7 2 7 3 6 4 4 2 . . Slashing Weapon 2 | . . . . . . . . . 9 7 23 7 7 2 6 1 . . . . Peak Build Rating 112 | 9 10 19 25 25 27 27 36 35 23 38 44 63 66 66 80 86 86 89 91 112 Average Rating 47 | 6 8 14 20 25 25 27 33 26 18 27 40 49 65 61 76 83 81 81 88 93 On Entrance 42 | . 7 10 18 25 25 27 27 28 9 23 38 41 63 66 61 75 82 81 89 88 Naked Turns . | . . . . . . . . . . . . . . . . . . . . . Heaviest Build 137 | 12 30 32 60 60 60 60 116 69 63 65 63 103 103 106 109 120 118 113 120 137 Greatest Support 150 | 40 40 40 40 40 40 40 40 40 40 40 60 107 107 107 150 150 150 150 150 150 Greatest Overweight (x) 10 | . . 1 1 1 1 1 3 3 1 5 1 1 1 1 . . . . . 10 Average Overweight (x) . | . . . . 1 1 1 1 . 1 1 1 . . . . . . . . . Largest Inventory Capacity 25 | 8 15 15 20 20 20 20 25 20 20 20 20 25 25 25 25 25 25 25 25 25 Average Capacity 20 | 7 10 15 16 20 20 20 19 20 20 19 20 22 25 25 25 25 25 25 25 24 Most Carried 25 | 3 13 15 20 20 20 20 20 20 18 20 20 25 25 25 25 25 25 25 25 25 Average Carried 20 | 1 8 13 16 20 19 20 19 19 17 18 19 22 25 24 24 24 24 24 24 22 Final Capacity 25 | 8 15 15 20 20 20 20 20 20 20 20 20 25 25 25 25 25 25 25 25 5 Final Carried 25 | 3 11 14 20 20 20 20 18 19 18 20 20 25 25 25 25 25 25 25 25 4 Class Distribution -------------------- 16% | Botlord-Skirmisher 15% | Botlord-Gunner 14% | Gunner 13% | Mutant 7% | Skirmisher 6% | Tank 4% | Bothacker-Tank 4% | Botlord-Tank 4% | Bothacker-Gunner 3% | Scavenger-Gunner Dominant Class ---------------- Mutant | -10/Materials Mutant | -10/Mines Gunner | -9/Materials Gunner | -9/Mines Gunner | -9/Exiles Skirmisher | -8/Mines Tank | -8/Materials Skirmisher | -8/Garrison Mutant | -8/Materials Mutant | -8/Garrison Bothacker-Gladiator | -7/Factory Botlord-Gunner | -7/Garrison Botlord-Skirmisher | -7/Factory Botlord-Gunner | -7/Garrison Botlord-Gunner | -6/Factory Botlord-Skirmisher | -6/Lower Caves Botlord-Skirmisher | -6/Lower Caves Botlord-Skirmisher | -6/Data Miner Botlord-Skirmisher | -5/Proximity Caves Bothacker-Tank | -5/Factory Resources | -11 -10 -10 -9 -9 -9 -8 -8 -8 -8 -8 -7 -7 -7 -7 -6 -6 -6 -6 -5 -5 ----------- Run | Yrd Mat Min Mat Min Exi Min Mat Gar Mat Gar Fac Gar Fac Gar Fac Low Low Dat Pro Fac Matter Collected 10836 | 293 820 243 1537 72 . 48 2054 349 53 705 . 965 . 1119 20 356 189 202 422 1389 Remotely . | . . . . . . . . . . . . . . . . . . . . . Salvage Created 11124 | 109 1164 127 1721 208 . 134 3241 428 53 614 . 1166 . 628 . . . 76 39 1416 Parts 633 | 14 75 7 114 8 . 8 180 34 3 33 . 44 . 37 . . . 1 4 71 Haulers Intercepted 12 | . 2 . 6 . . . 4 . . . . . . . . . . . . . Recyclers Shooed 4 | . 1 . 1 . . . 1 . . . . . . . . . . . . 1 Parts Field Recycled . | . . . . . . . . . . . . . . . . . . . . . Retrieved Matter . | . . . . . . . . . . . . . . . . . . . . . Parts Self-Destructed 14 | . . . . . . . . . . . . . . . . 7 . . 7 . Prevented . | . . . . . . . . . . . . . . . . . . . . . Kills | -11 -10 -10 -9 -9 -9 -8 -8 -8 -8 -8 -7 -7 -7 -7 -6 -6 -6 -6 -5 -5 ------- Run | Yrd Mat Min Mat Min Exi Min Mat Gar Mat Gar Fac Gar Fac Gar Fac Low Low Dat Pro Fac Combat Hostiles Destroyed 207 | . 21 16 34 . . 3 46 16 1 14 . 10 . 19 . . . 1 2 24 Melee 3 | . . . . . . . . . 1 1 . 1 . . . . . . . . Guns 170 | . 17 1 29 . . 3 46 16 . 13 . 8 . 19 . . . 1 1 16 Cannons 19 | . 4 1 5 . . . . . . . . 1 . . . . . . 1 7 AOE 15 | . . 14 . . . . . . . . . . . . . . . . . 1 Classes Destroyed 19 | 2 7 2 2 . . . 1 1 . 2 . . . 1 . . . . . 1 Worker 15 | 2 2 1 1 1 . 1 7 . . . . . . . . . . . . . Builder 7 | . 2 . . 1 . . 4 . . . . . . . . . . . . . Tunneler 11 | 3 1 . 2 1 . . 3 . . . . . . . . . . . . 1 Hauler 12 | . 2 . 6 . . . 4 . . . . . . . . . . . . . Recycler 14 | . 3 . 1 2 . 1 7 . . . . . . . . . . . . . Mechanic 3 | . . . 1 . . . 1 . . . . . . . . . . . . 1 Operator 2 | . 2 . . . . . . . . . . . . . . . . . . . Watcher 13 | . 3 . 3 . . . 5 . . . . . . . . . . . . 2 Swarmer 64 | . 6 . 11 . . 3 10 8 . 3 . 7 . 11 . . . . 2 3 Cutter 3 | . . . . . . . . 3 . . . . . . . . . . . . Grunt 81 | . 15 . 14 . . . 30 5 . 4 . 3 . 4 . . . . . 6 Brawler 2 | . . . . . . . 1 . . . . . . . . . . . . 1 Duelist 1 | . . . . . . . . . . 1 . . . . . . . . . . Sentry 24 | . . . 9 . . . 5 . 1 3 . . . . . . . . . 6 Demolisher 2 | . . 2 . . . . . . . . . . . . . . . . . . Specialist 1 | . . . . . . . . . . . . . . . . . . . . 1 Hunter 2 | . . . . . . . . . . . . . . 1 . . . . . 1 Programmer 11 | . . . . . . . . . . 3 . . . 3 . . . . . 5 Enhanced Grunt 1 | . . . . . . . . . . . . . . . . . . 1 . . Combat Programmer 1 | . . . . . . . . . . . . . . . . . . . . 1 Assembled 14 | . . 14 . . . . . . . . . . . . . . . . . . Best Kill Streak 16 | 4 5 16 4 4 . 4 8 4 1 4 . 4 . 8 . . . 1 2 14 Combat Bots Only 15 | . 3 15 4 . . 3 6 4 1 4 . 4 . 8 . . . 1 2 13 Max Kills in Single Turn 5 | 1 1 5 2 1 . 2 3 2 1 1 . 2 . 3 . . . 1 1 3 Gunslinging 2 | . . . 1 . . 1 1 1 . . . 1 . 2 . . . . . 1 Exploded 5 | . . 5 . . . . . . . . . . . . . . . . . 1 Melee 1 | . . . . . . . . . 1 1 . 1 . . . . . . . . Uniques/NPCs Destroyed . | . . . . . . . . . . . . . . . . . . . . . Combat | -11 -10 -10 -9 -9 -9 -8 -8 -8 -8 -8 -7 -7 -7 -7 -6 -6 -6 -6 -5 -5 -------- Run | Yrd Mat Min Mat Min Exi Min Mat Gar Mat Gar Fac Gar Fac Gar Fac Low Low Dat Pro Fac Hostile Shots Fired 1117 | . 103 30 95 . . 5 144 75 10 137 . 59 . 105 . 31 21 20 26 256 Missed 304 | . 31 5 26 . . 1 32 21 . 32 . 18 . 35 . 14 7 10 6 66 Damage Taken 14245 | . 813 577 817 . . 25 1591 954 141 1546 47 770 . 1144 . 210 91 461 356 4702 Core 2167 | . 89 108 142 . . 6 117 144 28 229 . 69 . 159 . . . 43 22 1011 Absorbed by Shields 107 | . . . . . . . . . . . . 30 . . . . 41 . 18 18 Reduced by Siege Mode 97 | . . . . . . . . . . . . . . 13 . . . 17 44 23 Ignored by Resistances 230 | . . . . . . . 64 . . . . . . . . . . . 20 146 Regen/Repaired (Parts) 435 | . . . 11 . . . 424 . . . . . . . . . . . . . Core Remaining (%) 58 | 100 . 21 . . . 63 . . . 5 . . . 67 . . . . 92 . Volleys Fired 654 | 8 119 18 78 6 . 4 129 23 2 55 4 37 . 62 . 11 6 7 25 60 Largest 4 | 2 2 2 4 4 . 4 4 4 1 3 1 4 . 4 . 3 4 4 4 4 Hottest 227 | 40 100 68 138 92 . 92 96 96 23 124 5 149 . 112 . 134 147 102 157 227 Shots Fired 1886 | 16 233 29 301 24 . 16 500 85 2 111 4 87 . 165 . 15 19 28 61 190 Gun 1619 | 16 179 5 274 24 . 16 500 85 2 106 . 66 . 148 . 2 12 28 23 133 Cannon 198 | . 52 16 27 . . . . . . . . 11 . . . 4 6 . 30 52 Launcher 8 | . . 8 . . . . . . . . . . . . . . . . . . Special 61 | . 2 . . . . . . . . 5 4 10 . 17 . 9 1 . 8 5 Kinetic 1724 | 16 231 21 291 24 . 16 500 85 2 64 . 66 . 148 . 6 18 28 53 155 Thermal 81 | . 2 . 9 . . . . . . 29 . 11 . . . . . . . 30 Explosive 8 | . . 8 . . . . . . . . . . . . . . . . . . Electromagnetic 14 | . . . 1 . . . . . . 13 . . . . . . . . . . Robot Hit Streak 26 | 3 12 14 17 15 . 16 20 9 8 17 3 9 . 15 . 5 5 11 16 26 Robot Miss Streak 5 | 3 4 2 5 2 . 1 5 5 . 3 1 3 . 5 . 2 3 3 2 4 Penetration Max 1 | . . . . . . . . . . . . . . 1 . . . . . 1 Secondary Targets 41 | . 2 . 5 . . 1 6 4 . 4 . 3 . 6 . . . . . 10 Max Gunslinging Chain 2 | . 1 . 1 . . 1 1 2 . 1 . 2 . 2 . . . . . 2 Shots Hit Robots 1200 | 6 150 14 157 15 . 7 300 47 8 91 3 93 . 93 . 10 10 18 47 131 Core Hits 510 | 5 60 32 67 5 . 5 129 24 1 33 . 31 . 36 . . 1 7 7 67 Critical Kills 9 | . . . 2 . . 1 1 . . . . . . 2 . . . . . 3 Critical Parts Destroyed 10 | . 1 . . . . . 1 . . . . 1 . 1 . . . . . 6 Critical Strikes 34 | . 2 . 2 . . 1 2 . 1 2 . 3 . 3 . . . . 6 12 Burn 1 | . . . . . . . . . . 1 . . . . . . . . . . Destroy 19 | . 1 . 2 . . 1 2 . . . . 1 . 3 . . . . . 9 Blast 10 | . 1 . . . . . . . . . . . . . . . . . 6 3 Sever 4 | . . . . . . . . . 1 1 . 2 . . . . . . . . Melee Attacks 164 | . . . 2 . . . 1 . 7 24 . 91 . 20 3 13 . 1 . 2 Impact . | . . . . . . . . . . . . . . . . . . . . . Slashing 164 | . . . 2 . . . 1 . 7 24 . 91 . 20 3 13 . 1 . 2 Piercing . | . . . . . . . . . . . . . . . . . . . . . Sneak Attacks 3 | . . . . . . . . . . 1 . 1 . . . . . 1 . . Combat Hostiles 1 | . . . . . . . . . . 1 . . . . . . . . . . Follow-up Attacks . | . . . . . . . . . . . . . . . . . . . . . Damage Inflicted 25347 | 69 1880 993 2545 222 . 106 5180 885 240 1354 . 4109 . 1564 . 143 177 388 1129 4363 Guns 16938 | 69 1356 54 2261 222 . 106 5180 885 36 1116 . 603 . 1564 . 47 86 300 416 2637 Cannons 3496 | . 524 103 284 . . . . . . . . 215 . . . 96 91 . 713 1470 Explosions 1092 | . . 836 . . . . . . . . . . . . . . . . . 256 Melee 3821 | . . . . . . . . . 204 238 . 3291 . . . . . 88 . . Ramming . | . . . . . . . . . . . . . . . . . . . . . Kinetic 18858 | 69 1880 157 2440 222 . 106 5180 885 36 692 . 603 . 1564 . 143 177 300 1129 3275 Thermal 1613 | . . . 105 . . . . . . 344 . 215 . . . . . . . 949 Explosive 836 | . . 836 . . . . . . . . . . . . . . . . . . Electromagnetic 219 | . . . . . . . . . . 80 . . . . . . . . . 139 Impact . | . . . . . . . . . . . . . . . . . . . . . Slashing 3821 | . . . . . . . . . 204 238 . 3291 . . . . . 88 . . Piercing . | . . . . . . . . . . . . . . . . . . . . . Highest Corruption 16 | . . 4 . . . . 2 2 2 4 . . . 1 . . . . . 16 Average Corruption 2 | . . 4 . . . . 1 2 2 2 . . . 1 . . . . . 3 Corruption Purged . | . . . . . . . . . . . . . . . . . . . . . Corruption Blocked . | . . . . . . . . . . . . . . . . . . . . . Effects 82 | . . 7 . . . . 3 5 4 39 . . . 8 . . . . . 16 Message Errors 25 | . . 2 . . . . 2 2 1 10 . . . 3 . . . . . 5 Matter Fused 25 | . . 1 . . . . 1 2 2 12 . . . 2 . . . . . 5 Heat Flow Errors 6 | . . 3 . . . . . 1 . 2 . . . . . . . . . . Energy Discharges 5 | . . . . . . . . . . 4 . . . 1 . . . . . . Parts Rejected 1 | . . . . . . . . . . . . . . . . . . . . 1 Parts Fused 3 | . . . . . . . . . . 2 . . . . . . . . . 1 Data Loss (minor) 10 | . . . . . . . . . 1 6 . . . 1 . . . . . 2 Misfires 4 | . . 1 . . . . . . . 3 . . . . . . . . . . Alerts 1 | . . . . . . . . . . . . . . 1 . . . . . . Misdirections 1 | . . . . . . . . . . . . . . . . . . . . 1 Weapon Failures 1 | . . . . . . . . . . . . . . . . . . . . 1 Overload Shots . | . . . . . . . . . . . . . . . . . . . . . Overflow Damage 388 | . 9 35 . . . . . . . . . 306 . . . . . 28 8 2 Projectiles 21 | . 9 . . . . . . . . . . 2 . . . . . . 8 2 Explosions 35 | . . 35 . . . . . . . . . . . . . . . . . . Melee 332 | . . . . . . . . . . . . 304 . . . . . 28 . . Knockbacks 16 | . 8 3 2 . . . . . . . . . . . . . . . 1 2 Impact . | . . . . . . . . . . . . . . . . . . . . . Kinetic 13 | . 6 3 1 . . . . . . . . . . . . . . . 1 2 Secondary 3 | . 2 . 1 . . . . . . . . . . . . . . . . . Self-Inflicted Damage 57 | . . 57 . . . . . . . . . . . . . . . . . . Shots 3 | . . 3 . . . . . . . . . . . . . . . . . . Rammed . | . . . . . . . . . . . . . . . . . . . . . Targets Rammed . | . . . . . . . . . . . . . . . . . . . . . Kicked . | . . . . . . . . . . . . . . . . . . . . . Crushed . | . . . . . . . . . . . . . . . . . . . . . Highest Temperature 291 | . 40 237 270 15 . 30 291 247 1 234 . 249 . 262 . 84 177 108 258 283 Average Temperature 66 | . 14 86 43 10 . 13 79 76 1 74 . 73 . 65 . 46 75 43 90 80 Received Heat Transfer 2880 | . 381 40 267 . . . 774 141 63 414 12 172 . 189 . 18 28 . 54 327 Effects 1 | . . . . . . . . . . . . . . 1 . . . . . . Energy Bleed 1 | . . . . . . . . . . . . . . 1 . . . . . . Siege Activations 7 | . . . . . . . . . . . . . . 1 . . . 1 3 2 Total Turns 79 | . . . . . . . . . . . . . . 13 . . . 16 37 13 Longest Duration 16 | . . . . . . . . . . . . . . 13 . . . 16 16 11 Robots Corrupted . | . . . . . . . . . . . . . . . . . . . . . Combat Hostiles . | . . . . . . . . . . . . . . . . . . . . . Parts Fried 1 | . . . . . . . . . . . . . . . . . . . . 1 Impact Corruptions . | . . . . . . . . . . . . . . . . . . . . . Robots Melted . | . . . . . . . . . . . . . . . . . . . . . Combat Hostiles . | . . . . . . . . . . . . . . . . . . . . . Parts Melted 3 | . . . . . . . . . . 2 . . . 1 . . . . . . Heat Transferred 1732 | . . . 222 . . . . . . 851 . 374 . . . . . . . 285 Parts Sabotaged 3 | . . . . . . . . . . . . . . 3 . . . . . . Parts Stolen 1 | . . . . . . . . . . . . . . . . . 1 . . . Parts Stripped . | . . . . . . . . . . . . . . . . . . . . . Power Chain Reactions 1 | . . . . . . . . . . . . . . . . . . . . 1 Alert | -11 -10 -10 -9 -9 -9 -8 -8 -8 -8 -8 -7 -7 -7 -7 -6 -6 -6 -6 -5 -5 ------- Run | Yrd Mat Min Mat Min Exi Min Mat Gar Mat Gar Fac Gar Fac Gar Fac Low Low Dat Pro Fac Peak Influence 1707 | 25 242 141 378 135 . 75 600 848 442 936 491 1695 889 1707 888 . . . . 297 Initial 889 | . 16 87 . 130 . . 1 379 386 287 491 343 889 622 888 . . . . . Average 451 | 7 115 104 180 80 . 44 273 587 413 604 491 1005 889 1151 750 . . . . 68 Maximum Alert Level 5 | . 1 . 1 . . . 2 3 2 3 2 5 3 5 3 . . . . 1 Low Security (%) 39 | 100 83 100 60 100 . 100 32 . . . . . . . . . . . . 93 Level 1 20 | . 16 . 39 . . . 48 22 35 24 . 13 . . . . . . . 6 Level 2 14 | . . . . . . . 19 47 64 48 100 12 . 10 22 . . . . . Level 3 14 | . . . . . . . . 30 . 26 . 31 100 37 77 . . . . . Level 4 8 | . . . . . . . . . . . . 36 . 35 . . . . . . Level 5 2 | . . . . . . . . . . . . 6 . 16 . . . . . . High Security . | . . . . . . . . . . . . . . . . . . . . . Max Security . | . . . . . . . . . . . . . . . . . . . . . Squads Dispatched 29 | . 4 . 5 . . . 9 . . . . . . . 1 . . . . 10 Investigation 12 | . 2 . 5 . . . 5 . . . . . . . . . . . . . Extermination 3 | . . . . . . . . . . . . . . . 1 . . . . 2 Reinforcement 4 | . 2 . . . . . . . . . . . . . . . . . . 2 Assault 2 | . . . . . . . 1 . . . . . . . . . . . . 1 Garrison 6 | . . . . . . . 3 . . . . . . . . . . . . 3 Intercept 2 | . . . . . . . . . . . . . . . . . . . . 2 Searches Triggered . | . . . . . . . . . . . . . . . . . . . . . Construction Impeded . | . . . . . . . . . . . . . . . . . . . . . Haulers Reinforced . | . . . . . . . . . . . . . . . . . . . . . Active Scanning Responses . | . . . . . . . . . . . . . . . . . . . . . Cargo Convoy Interrupts 1 | . . . . . . . . . . . . . . . . . . . . 1 Alert ID Control Effect 23 | . . . . . . . . . . . . 1 . 13 . 3 . . 6 . Stealth | -11 -10 -10 -9 -9 -9 -8 -8 -8 -8 -8 -7 -7 -7 -7 -6 -6 -6 -6 -5 -5 --------- Run | Yrd Mat Min Mat Min Exi Min Mat Gar Mat Gar Fac Gar Fac Gar Fac Low Low Dat Pro Fac Distress Signals 7 | . 1 . 1 . . . 5 . . . . . . . . . . . . . Communications Jammed 67 | . . . . . . . . . . . . . . . . . . . . 67 Distress Signals 67 | . . . . . . . . . . . . . . . . . . . . 67 Times Spotted 373 | . 32 21 42 . . 3 65 18 2 21 1 38 . 48 1 11 7 4 10 49 Peak Tracking Total 13 | . 4 13 4 . . 3 7 5 2 6 1 5 . 7 1 4 3 4 4 11 Tactical Retreats 12 | . 3 . . . . . 1 . . 5 . . . 1 . . . . . 2 Traps | -11 -10 -10 -9 -9 -9 -8 -8 -8 -8 -8 -7 -7 -7 -7 -6 -6 -6 -6 -5 -5 ------- Run | Yrd Mat Min Mat Min Exi Min Mat Gar Mat Gar Fac Gar Fac Gar Fac Low Low Dat Pro Fac Traps Triggered 18 | . . . 4 . . . 2 3 . 1 . 5 . 2 . . . . . 1 Indirectly 1 | . . . . . . . . . . . . . . . . . . . . 1 Trap Hack Attempts . | . . . . . . . . . . . . . . . . . . . . . Triggered . | . . . . . . . . . . . . . . . . . . . . . Disarmed . | . . . . . . . . . . . . . . . . . . . . . Reprogrammed . | . . . . . . . . . . . . . . . . . . . . . Reused . | . . . . . . . . . . . . . . . . . . . . . Traps Extracted . | . . . . . . . . . . . . . . . . . . . . . Installed . | . . . . . . . . . . . . . . . . . . . . . Triggered . | . . . . . . . . . . . . . . . . . . . . . Objects Rigged 4 | . . . . . . . . 2 . 2 . . . . . . . . . . Exploded 2 | . . . . . . . . 1 . 1 . . . . . . . . . . Machines | -11 -10 -10 -9 -9 -9 -8 -8 -8 -8 -8 -7 -7 -7 -7 -6 -6 -6 -6 -5 -5 ---------- Run | Yrd Mat Min Mat Min Exi Min Mat Gar Mat Gar Fac Gar Fac Gar Fac Low Low Dat Pro Fac Machines Disabled 27 | . 1 . 1 . . . . 1 . 3 . 5 . 7 . . 1 . . 8 Max in Single Turn 4 | . 1 . 1 . . . . 1 . 1 . 1 . 1 . . 1 . . 4 Garrison Access 1 | . . . . . . . . . . . . . . . . . . . . 1 Garrison Relay 14 | . . . . . . . . 1 . 3 . 4 . 6 . . . . . . Machines Repaired . | . . . . . . . . . . . . . . . . . . . . . Machines Dismantled 1 | . . . . . . . . . . . . . . . . . 1 . . . Machines Sabotaged . | . . . . . . . . . . . . . . . . . . . . . Overloaded Fab Kills . | . . . . . . . . . . . . . . . . . . . . . Hacking | -11 -10 -10 -9 -9 -9 -8 -8 -8 -8 -8 -7 -7 -7 -7 -6 -6 -6 -6 -5 -5 --------- Run | Yrd Mat Min Mat Min Exi Min Mat Gar Mat Gar Fac Gar Fac Gar Fac Low Low Dat Pro Fac Machines Accessed 63 | . 8 . 17 . 2 . 11 2 2 2 3 2 1 . 3 . 1 4 . 5 Terminals 39 | . 6 . 12 . . . 8 2 1 2 . 2 . . 3 . . . . 3 Fabricators 1 | . . . . . . . . . . . . . . . . . . . . 1 Repair Stations 2 | . . . 1 . . . 1 . . . . . . . . . . . . . Recycling Units 5 | . 2 . 2 . . . . . . . 1 . . . . . . . . . Scanalyzers 4 | . . . 2 . . . 1 . . . 1 . . . . . . . . . Garrison Access 5 | . . . . . . . 1 . 1 . 1 . 1 . . . . . . 1 Total Hacks 242 | . 25 . 72 . 24 . 37 3 7 2 7 4 2 . 7 . 1 30 . 21 Successful 170 | . 12 . 53 . 24 . 18 1 3 2 4 1 2 . 4 . 1 30 . 15 Failed 69 | . 12 . 18 . . . 18 2 4 . 3 3 . . 3 . . . . 6 Catastrophic 11 | . 1 . 3 . . . 2 1 2 . 1 . . . . . . . . 1 Database Lockouts 3 | . 1 . 1 . . . 1 . . . . . . . . . . . . . Manual 68 | . 21 . 26 . 1 . 13 . 2 . . . . . 1 . . . . 4 Terminals 132 | . 23 . 54 . . . 29 3 3 2 . 4 . . 7 . . . . 7 Fabricators 8 | . . . . . . . . . . . . . . . . . . . . 8 Repair Stations 5 | . . . 2 . . . 3 . . . . . . . . . . . . . Recycling Units 7 | . 2 . 2 . . . . . . . 3 . . . . . . . . . Scanalyzers 18 | . . . 14 . . . 2 . . . 2 . . . . . . . . . Garrison Access 17 | . . . . . . . 3 . 4 . 2 . 2 . . . . . . 6 Terminal Hacks 104 | . 3 . 23 . 24 . 12 1 . 2 . 1 . . 4 . 1 30 . 3 Record 35 | . . . . . 23 . 1 . . . . . . . . . . 11 . . Part Schematic 9 | . . . . . . . . . . . . . . . . . . 9 . . Robot Schematic 8 | . . . . . . . . . . . . . . . . . . 7 . 1 Robot Analysis 5 | . 1 . 2 . . . 2 . . . . . . . . . . . . . Prototype ID Bank 11 | . . . 4 . . . 2 . . . . . . . 1 . . 3 . 1 Open Door 1 | . . . . . . . . . . . . . . . . . 1 . . . Level Access Points 1 | . . . . . . . 1 . . . . . . . . . . . . . Branch Access Points 1 | . . . . . . . 1 . . . . . . . . . . . . . Emergency Access Points 3 | . 1 . . . . . . 1 . 1 . . . . . . . . . . Terminal Index 1 | . . . 1 . . . . . . . . . . . . . . . . . Recycling Unit Index 1 | . . . 1 . . . . . . . . . . . . . . . . . Alert Level 2 | . . . 1 . . . 1 . . . . . . . . . . . . . Unreport Threat 5 | . . . 2 . . . 1 . . . . . . . 1 . . . . 1 Locate Traps 5 | . . . 3 . . . 1 . . . . . . . 1 . . . . . Dispatch Records 1 | . . . 1 . . . . . . . . . . . . . . . . . Patrol Status 1 | . . . . . . . 1 . . . . . . . . . . . . . Transport Status 1 | . . . 1 . . . . . . . . . . . . . . . . . Hauler Manifests 4 | . . . 2 . . . 1 . . . . . . . 1 . . . . . Registered Components 1 | . . . 1 . . . . . . . . . . . . . . . . . Registered Prototypes 1 | . 1 . . . . . . . . . . . . . . . . . . . Zone Layout 4 | . . . 4 . . . . . . . . . . . . . . . . . Garrison Registry 2 | . . . . . . . . . . 1 . 1 . . . . . . . . Derelict Proto ID Bank 1 | . . . . . 1 . . . . . . . . . . . . . . . Fabricator Hacks 7 | . . . . . . . . . . . . . . . . . . . . 7 Load Schematic 4 | . . . . . . . . . . . . . . . . . . . . 4 Build 3 | . . . . . . . . . . . . . . . . . . . . 3 Repair Station Hacks 4 | . . . 2 . . . 2 . . . . . . . . . . . . . Scan Component 2 | . . . 1 . . . 1 . . . . . . . . . . . . . Repair 2 | . . . 1 . . . 1 . . . . . . . . . . . . . Recycling Unit Hacks 2 | . . . . . . . . . . . 2 . . . . . . . . . Process 1 | . . . . . . . . . . . 1 . . . . . . . . . Retrieve Matter 1 | . . . . . . . . . . . 1 . . . . . . . . . Scanalyzer 15 | . . . 13 . . . 2 . . . . . . . . . . . . . Insert Component 7 | . . . 6 . . . 1 . . . . . . . . . . . . . Analyze 8 | . . . 7 . . . 1 . . . . . . . . . . . . . Garrison Access Hacks 9 | . . . . . . . 1 . 2 . 2 . 2 . . . . . . 2 Unlock Access 5 | . . . . . . . 1 . 1 . 1 . 1 . . . . . . 1 Coupler Status 4 | . . . . . . . . . 1 . 1 . 1 . . . . . . 1 Unauthorized Hacks 29 | . 9 . 15 . . . 1 . 1 . . . . . . . . . . 3 Terminals 21 | . 7 . 13 . . . 1 . . . . . . . . . . . . . Botnet 2 | . 2 . . . . . . . . . . . . . . . . . . . Operators 2 | . . . 1 . . . 1 . . . . . . . . . . . . . Skim 17 | . 5 . 12 . . . . . . . . . . . . . . . . . Fabricators . | . . . . . . . . . . . . . . . . . . . . . Repair Stations . | . . . . . . . . . . . . . . . . . . . . . Recycling Units 4 | . 2 . 2 . . . . . . . . . . . . . . . . . Tunnel 4 | . 2 . 2 . . . . . . . . . . . . . . . . . Scanalyzers . | . . . . . . . . . . . . . . . . . . . . . Garrison Access 4 | . . . . . . . . . 1 . . . . . . . . . . 3 Broadcast 1 | . . . . . . . . . . . . . . . . . . . . 1 Reprogram 1 | . . . . . . . . . . . . . . . . . . . . 1 Watchers 2 | . . . . . . . . . 1 . . . . . . . . . . 1 Data Cores Recovered . | . . . . . . . . . . . . . . . . . . . . . Used . | . . . . . . . . . . . . . . . . . . . . . Hacking Detections 42 | . 6 . 12 . . . 10 1 2 . 2 2 . . 3 . . . . 4 Full Trace Events 14 | . 1 . 4 . . . 6 1 1 . . 1 . . . . . . . . Feedback Events 1 | . . . . . . . 1 . . . . . . . . . . . . . Corruption 1 | . . . . . . . 1 . . . . . . . . . . . . . Feedback Blocked . | . . . . . . . . . . . . . . . . . . . . . Robot Schematics Acquired 8 | . . . . . . . . . . . . . . . . . . 7 . 1 Robots Built 9 | . . . . . . . . . . . . . . . . . . . . 9 Authchips 3 | . . . . . . . . . . . . . . . . . . . . 3 Time 252 | . . . . . . . . . . . . . . . . . . . . 252 Total Robot Build Rating 54 | . . . . . . . . . . . . . . . . . . . . 54 Part Schematics Acquired 16 | . . . 6 . . . 1 . . . . . . . . . . 9 . . Parts Built . | . . . . . . . . . . . . . . . . . . . . . Authchips . | . . . . . . . . . . . . . . . . . . . . . Time . | . . . . . . . . . . . . . . . . . . . . . Total Part Build Rating . | . . . . . . . . . . . . . . . . . . . . . Parts Repaired 2 | . . . 1 . . . 1 . . . . . . . . . . . . . Time 162 | . . . 136 . . . 26 . . . . . . . . . . . . . Parts Recycled . | . . . . . . . . . . . . . . . . . . . . . Recycled Matter . | . . . . . . . . . . . . . . . . . . . . . Retrieved Matter . | . . . . . . . . . . . . . . . . . . . . . Retrieved Components . | . . . . . . . . . . . . . . . . . . . . . Parts Scanalyzed 7 | . . . 6 . . . 1 . . . . . . . . . . . . . Part Schematics Acquired 7 | . . . 6 . . . 1 . . . . . . . . . . . . . Parts Damaged 1 | . . . 1 . . . . . . . . . . . . . . . . . Bothacking | -11 -10 -10 -9 -9 -9 -8 -8 -8 -8 -8 -7 -7 -7 -7 -6 -6 -6 -6 -5 -5 ------------ Run | Yrd Mat Min Mat Min Exi Min Mat Gar Mat Gar Fac Gar Fac Gar Fac Low Low Dat Pro Fac Used RIF Installer 6 | . . . . . . . . 1 . 2 . 1 . 2 . . . . . . Hotswap 1 | . . . . . . . . . . 1 . . . . . . . . . . Threat Obfuscator 1 | . . . . . . . . . . . . . . 1 . . . . . . Patrol Navigation 1 | . . . . . . . . . . . . 1 . . . . . . . . Alert ID Control 1 | . . . . . . . . . . 1 . . . . . . . . . . Autoassimilate 1 | . . . . . . . . . . . . . . 1 . . . . . . Robots Hacked 43 | . . . . . . . . . . 4 2 7 . 10 . 8 1 . 5 6 Non-combat 2 | . . . . . . . . . . . 1 . . . . . . . . 1 Combat 41 | . . . . . . . . . . 4 1 7 . 10 . 8 1 . 5 5 Autoassimilated 5 | . . . . . . . . . . . . . . 1 . 1 . . . 3 Robot Hacks Applied 39 | . . . . . . . . . . 4 2 7 . 10 . 7 1 . 5 3 parse_system 2 | . . . . . . . . . . . . . . . . 1 . . 1 . spike_heat 1 | . . . . . . . . . . . . . . 1 . . . . . . amplify_resonance 1 | . . . . . . . . . . . . . . 1 . . . . . . disable_weapons 3 | . . . . . . . . . . . . . . . . 1 . . 1 1 reboot_system 1 | . . . . . . . . . . . . . . . . . . . 1 . go_dormant 2 | . . . . . . . . . . . . . . 1 . . . . . 1 formatsys_low 2 | . . . . . . . . . . . 1 . . . . . . . . 1 formatsys_high 27 | . . . . . . . . . . 4 1 7 . 7 . 5 1 . 2 . Relay Couplers Released 61 | . . . . . . . . 5 . 14 . 18 . 21 . . . . . 3 Machine Destruction 58 | . . . . . . . . 5 . 11 . 18 . 21 . . . . . 3 Programmers 3 | . . . . . . . . . . 3 . . . . . . . . . . Attached 21 | . . . . . . . . . . 2 1 5 . 7 . 2 1 . . 3 Fabnet Peak Effective % . | . . . . . . . . . . . . . . . . . . . . . Robots Rewired 6 | . . . . . . . . . . . . 3 . 3 . . . . . . Allies Hacked 1 | . . . . . . . . . . . . . . . . . . . . 1 Hacks Repelled . | . . . . . . . . . . . . . . . . . . . . . Allies | -11 -10 -10 -9 -9 -9 -8 -8 -8 -8 -8 -7 -7 -7 -7 -6 -6 -6 -6 -5 -5 -------- Run | Yrd Mat Min Mat Min Exi Min Mat Gar Mat Gar Fac Gar Fac Gar Fac Low Low Dat Pro Fac Total Allies 54 | . . 3 . . . . . . . 4 2 10 . 13 . 6 1 . 2 13 Largest Group 10 | . . 3 3 . . . . . . 4 6 9 6 7 6 10 10 3 3 10 Highest-Rated Group 446 | . . 40 40 . . . . . . 62 108 156 112 320 307 446 446 105 128 307 Highest-Rated Ally 95 | . . 16 16 . . . . . . 16 32 32 32 95 95 95 95 41 49 49 Total Orders 50 | . . . . . . . . 2 . 3 3 13 2 4 7 11 3 . 2 . STAY 17 | . . . . . . . . . . 2 1 5 1 2 1 3 1 . 1 . ROAM 1 | . . . . . . . . . . . . . . . . 1 . . . . FOLLOW 17 | . . . . . . . . . . 1 2 6 1 2 1 2 1 . 1 . AID 1 | . . . . . . . . . . . . 1 . . . . . . . . EXPLORE 8 | . . . . . . . . 1 . . . 1 . . 3 2 1 . . . RETURN 6 | . . . . . . . . 1 . . . . . . 2 3 . . . . Ally Attacks 371 | . . . 30 . . . . . . 2 . 101 . 90 1 29 37 29 28 24 Total Damage 8335 | . . . 259 . . . . . . 31 . 1576 . 1651 31 1205 1360 733 861 628 Kills 79 | . . . 4 . . . . . . . . 23 . 24 1 5 12 3 6 1 Allies Corrupted 4 | . . . . . . . . . . . . . . . . . 1 . . 3 Allies Melted 1 | . . . . . . . . . . . . 1 . . . . . . . . Intel | -11 -10 -10 -9 -9 -9 -8 -8 -8 -8 -8 -7 -7 -7 -7 -6 -6 -6 -6 -5 -5 ------- Run | Yrd Mat Min Mat Min Exi Min Mat Gar Mat Gar Fac Gar Fac Gar Fac Low Low Dat Pro Fac Robot Analysis Total 150 | . 1 . 2 . . . 2 . . . . . . . . . . 145 . . Derelict Logs Recovered 7 | . . 2 . 1 . . . . . . . . . . . 2 1 . 1 . Drone Launches 10 | . . . . . . . . 1 . . . 1 . . 3 4 1 . . . Drone Recoveries 9 | . . . . . . . . 1 . . . 1 . . 3 3 1 . . . Decoded 0b10 Intel 10 | . . . . . . . . . . . . . . . . . . . . 10 Emergency Access 2 | . . . . . . . . . . . . . . . . . . . . 2 Items 8 | . . . . . . . . . . . . . . . . . . . . 8 Exploration | -11 -10 -10 -9 -9 -9 -8 -8 -8 -8 -8 -7 -7 -7 -7 -6 -6 -6 -6 -5 -5 ------------- Run | Yrd Mat Min Mat Min Exi Min Mat Gar Mat Gar Fac Gar Fac Gar Fac Low Low Dat Pro Fac Turns Passed 23954 | 116 1698 454 3099 660 525 554 2469 604 313 1641 316 2245 146 1778 513 1957 1583 338 1598 1347 Spaces Moved 10252 | 51 787 187 1321 267 217 225 751 211 106 490 122 885 61 886 204 1060 883 145 905 488 Core 31 | 2 . . . . . . . . . . . . . . . . . . . 29 Treads 10140 | 49 787 187 1321 267 217 225 749 211 106 437 122 885 61 886 204 1060 883 145 905 433 Legs 79 | . . . . . . . 2 . . 53 . . . . . . . . . 24 Wheels . | . . . . . . . . . . . . . . . . . . . . . Hover 2 | . . . . . . . . . . . . . . . . . . . . 2 Flight . | . . . . . . . . . . . . . . . . . . . . . Fastest Speed 50 | 50 160 160 160 240 240 240 190 160 240 240 240 160 165 160 160 160 160 160 160 50 Average Speed 188 | 155 160 207 191 240 240 240 240 233 240 269 241 193 234 164 160 160 160 160 160 164 Slowest Speed 680 | 160 160 240 240 240 240 240 330 400 240 470 243 245 245 245 160 160 160 160 160 680 Overloaded Moves . | . . . . . . . . . . . . . . . . . . . . . Propulsion Burnouts . | . . . . . . . . . . . . . . . . . . . . . Robots Hopped 4 | . . . . . . . . . . . . . . 4 . . . . . . Cave-ins Triggered . | . . . . . . . . . . . . . . . . . . . . . Exploration Rate (%) 54 | 5 90 50 97 62 61 47 63 33 10 58 4 83 3 81 18 97 98 78 98 14 Regions Visited 20 Branch Regions 8 Pre-discovered Areas 37 | . 3 1 5 2 1 . . . . . . . . . . . . 25 . . Known Exits Taken 9 | . 1 1 1 . . 1 1 . 1 . 1 . 1 . 1 . . . . . Unknown Exits Taken 7 | 1 . . . 1 1 . . . . . . . . . . 1 1 1 1 . Scrap Searched 18 | . . 1 . 2 . . . . . . . . . . . 11 2 . 2 . Spaces Dug 58 | . 2 . 2 . . . 1 . 1 . . 25 . 5 3 13 . . 1 5 Terrain Destroyed 191 | . 2 53 5 . . . 1 . 1 . . 25 . 8 3 13 1 1 8 70 Melee 52 | . . . 2 . . . 1 . 1 . . 25 . 5 3 13 . . . 2 Projectile 41 | . 2 . 3 . . . . . . . . . . 3 . . 1 1 8 23 AOE 96 | . . 53 . . . . . . . . . . . . . . . . . 43 Terrain Rammed . | . . . . . . . . . . . . . . . . . . . . . Walls Destroyed . | . . . . . . . . . . . . . . . . . . . . . Machines Disabled . | . . . . . . . . . . . . . . . . . . . . . Actions | -11 -10 -10 -9 -9 -9 -8 -8 -8 -8 -8 -7 -7 -7 -7 -6 -6 -6 -6 -5 -5 --------- Run | Yrd Mat Min Mat Min Exi Min Mat Gar Mat Gar Fac Gar Fac Gar Fac Low Low Dat Pro Fac Total 13364 | 69 1000 226 1709 272 224 230 1174 284 148 678 143 1216 63 1083 386 1288 1033 235 1010 893 Wait 1516 | . 54 3 218 . . 2 216 21 21 32 . 68 1 42 167 161 117 66 61 266 Move 10229 | 50 786 186 1320 266 216 224 751 210 106 489 122 884 61 878 203 1059 882 144 904 488 Hop 3 | . . . . . . . . . . . . . . 3 . . . . . . Pick Up 159 | 3 11 8 14 . 4 . 23 6 2 15 7 22 . 12 3 11 5 5 1 7 Fast Attach 114 | 7 5 2 18 . . . 14 5 4 18 2 13 . 7 1 2 . . 1 15 Attach 67 | . 1 3 1 . . . 5 6 3 8 . 8 . 3 3 2 . 4 . 20 Detach 14 | . . 1 . . . . . 3 . 3 . 3 . . 2 1 . . . 1 Swap 195 | 1 11 2 24 . . . 16 4 3 12 1 22 1 31 2 16 11 5 14 19 Drop 194 | . 13 3 34 . 4 . 19 4 . 16 7 33 . 22 2 12 4 3 3 15 Fire 654 | 8 119 18 78 6 . 4 129 23 2 55 4 37 . 62 . 11 6 7 25 60 Melee 164 | . . . 2 . . . 1 . 7 24 . 91 . 20 3 13 . 1 . 2 Ram . | . . . . . . . . . . . . . . . . . . . . . Kick . | . . . . . . . . . . . . . . . . . . . . . Crush . | . . . . . . . . . . . . . . . . . . . . . Escape Stasis 9 | . . . . . . . . . . 2 . 7 . . . . . . . . Rewire 34 | . . . . . . . . . . 2 . 28 . 3 . . . . 1 . Trap 4 | . . . . . . . . 2 . 2 . . . . . . . . . . Miscellaneous 8 | . . . . . . . . . . . . . . . . . 8 . . . Route ------- -11/Scrapyard -10/Materials (discovered 5 exits: *Mat x3 / *Min / *Sub) -10/Mines (discovered 2 exits: *Mat x2) -9/Materials (discovered 5 exits: *Mat x3 / *Min x2) -9/Mines (discovered 3 exits: *Mat x2 / *Exi) -9/Exiles -8/Mines (discovered 2 exits: *Mat x2) -8/Materials (discovered 4 exits: Fac x3 / Gar) -8/Garrison (discovered 3 exits: *Mat x3) -8/Materials -8/Garrison (discovered 3 exits: *Fac x3) -7/Factory -7/Garrison (discovered 4 exits: *Fac x4) -7/Factory -7/Garrison (discovered 3 exits: *Fac x3) -6/Factory (discovered 2 exits: *Low x2) -6/Lower Caves -6/Lower Caves (discovered 2 exits: *Fac / *Dat) -6/Data Miner -5/Proximity Caves -5/Factory (discovered 3 exits: *Fac x2 / Gar) History --------- Turn | Location | Event 9 | -11/Scrapyard | Discovered new exit (range 16) 117 | -11/Scrapyard | Entered Materials 173 | -10/Materials | Discovered new exit (range 13) 300 | -10/Materials | Build established: Mutant 592 | -10/Materials | Discovered new exit (range 16) 962 | -10/Materials | Discovered new exit (range 3) 1098 | -10/Materials | Central database locked down 1325 | -10/Materials | Learned Recycling recycling unit intel 1388 | -10/Materials | Learned Storage security intel 1440 | -10/Materials | Identified exit to Materials 1484 | -10/Materials | Identified exit to Subcaves 1519 | -10/Materials | Loaded intel: 15 trap records 1545 | -10/Materials | Identified exit to Mines 1583 | -10/Materials | Learned location of Mines (-8) 1632 | -10/Materials | Learned Storage trap positions 1815 | -10/Materials | Entered Mines 1857 | -10/Mines | Found a damaged Exp. Sensor Array with a note attached 1860 | -10/Mines | Found Prototype Device 1923 | -10/Mines | Assembled infested the area 1928 | -10/Mines | Assisted by a Guerilla fighting off Assembled 1928 | -10/Mines | Learned location of Zion (-7) 1934 | -10/Mines | Received a Rocket Launcher from a helpful Derelict 1949 | -10/Mines | Core integrity fell below 50% 1996 | -10/Mines | Lost 4 parts (1p1n2w) 2013 | -10/Mines | Destroyed 15 combat bots 2197 | -10/Mines | Learned location of 1 exit from Materials 2264 | -10/Mines | Assisted by bots powering up and referring to "LRC-V3" 2269 | -10/Mines | Entered Materials 2269 | -9/Materials | Accompanied by 3 allies 2269 | -9/Materials | Evolved 2 slots: Weapon x2 2270 | -9/Materials | Identified exit to Mines 2417 | -9/Materials | Central database locked down 2609 | -9/Materials | Build established: Gunner 2747 | -9/Materials | Discovered new exit (range 10) 2952 | -9/Materials | Build established: Scavenger-Gunner 3079 | -9/Materials | Lost 3 allies 3281 | -9/Materials | Identified exit to Materials 3444 | -9/Materials | Loaded intel: 18 interactive machine locations 3469 | -9/Materials | Identified Exp. Sensor Array 3625 | -9/Materials | Learned Storage security intel 3684 | -9/Materials | Build established: Gunner 4933 | -9/Materials | Learned 2 Storage zone layouts 4995 | -9/Materials | Learned Storage stockpile data 5040 | -9/Materials | Repaired Broken Exp. Sensor Array 5045 | -9/Materials | Learned location of 2 exits from Materials 5164 | -9/Materials | Learned 4 Recycling zone layouts 5195 | -9/Materials | Learned location of Recycling (-7) 5238 | -9/Materials | Learned Materials stockpile data 5290 | -9/Materials | Learned location of Mines (-9) 5368 | -9/Materials | Entered Mines 5773 | -9/Mines | Deemed a non-threat by the Exiles lab entrance 5773 | -9/Mines | Discovered new exit (range 5) 6028 | -9/Mines | Entered Exiles 6086 | -9/Exiles | Met 8R-AWN 6127 | -9/Exiles | Met EX-HEX 6201 | -9/Exiles | Met EX-BIN 6228 | -9/Exiles | Aligned with FarCom system 6230 | -9/Exiles | Given EX-Vault access code 6290 | -9/Exiles | Opened EX-Vault 6307 | -9/Exiles | Found Supersonic Drone Bay 6314 | -9/Exiles | Found Trap Reconfigurator 6321 | -9/Exiles | Found PSU Rigger 6373 | -9/Exiles | Warned to stay clear of 0b10 Research branches 6435 | -9/Exiles | Met EX-DEC 6524 | -9/Exiles | Discovered new exit (range 12) 6553 | -9/Exiles | Stole three prototypes: Trap Reconfigurator, Supersonic Drone Bay, PSU Rigger 6553 | -9/Exiles | Entered Mines 6854 | -8/Mines | Build established: Skirmisher 7107 | -8/Mines | Entered Materials 7107 | -8/Materials | Evolved 2 slots: Utility x2 7108 | -8/Materials | Identified exit to Factory 7744 | -8/Materials | Build established: Tank 8272 | -8/Materials | Build established: Skirmisher 8510 | -8/Materials | Central database locked down 8605 | -8/Materials | Build established: Tank 9376 | -8/Materials | Garrison activated, responded to threat 9495 | -8/Materials | Repaired Hcp. Storage Unit 9507 | -8/Materials | First assault squad dispatched 9576 | -8/Materials | Identified exit to Garrison 9576 | -8/Materials | Entered Garrison 9577 | -8/Garrison | Identified exit to Materials 9682 | -8/Garrison | Triggered checkpoint 9788 | -8/Garrison | Garrison Relay disabled 9831 | -8/Garrison | Installed Relay Interface Framework 9868 | -8/Garrison | Build established: Skirmisher 9956 | -8/Garrison | Triggered checkpoint 10020 | -8/Garrison | Triggered checkpoint 10120 | -8/Garrison | Spotted B-75 Beast 10180 | -8/Garrison | Entered Materials 10193 | -8/Materials | Lost 7 parts (1p2n1u3w) 10317 | -8/Materials | Core integrity fell below 50% 10441 | -8/Materials | Build established: Mutant 10491 | -8/Materials | Identified exit to Garrison 10493 | -8/Materials | Entered Garrison 10669 | -8/Garrison | Discovered exit to Factory (range 61) 10669 | -8/Garrison | Discovered exit to Factory (range 62) 10669 | -8/Garrison | Discovered exit to Factory (range 88) 10753 | -8/Garrison | Garrison Relay disabled 10899 | -8/Garrison | Triggered checkpoint 10986 | -8/Garrison | Lost 3 parts (2n1w) 11193 | -8/Garrison | Triggered checkpoint 11452 | -8/Garrison | Build established: Scavenger-Mutant 11494 | -8/Garrison | Core integrity fell below 20% 11571 | -8/Garrison | Expanded RIF knowledge: Hotswap 11656 | -8/Garrison | Lost 3 parts (1u2w) 11668 | -8/Garrison | Expanded RIF knowledge: Alert ID Control 11769 | -8/Garrison | Triggered checkpoint 11801 | -8/Garrison | Garrison Relay disabled 11839 | -8/Garrison | Garrison Relay disabled 12134 | -8/Garrison | Entered Factory 12134 | -7/Factory | Accompanied by 4 allies 12134 | -7/Factory | Evolved 2 slots: Propulsion x1, Utility x1 12136 | -7/Factory | FarCom data flow suspended 12450 | -7/Factory | Identified exit to Garrison 12450 | -7/Factory | Entered Garrison 12450 | -7/Garrison | Accompanied by 6 allies 12481 | -7/Garrison | Build established: Bothacker-Gladiator 12516 | -7/Garrison | Triggered checkpoint 12570 | -7/Garrison | Expanded RIF knowledge: Patrol Navigation 12606 | -7/Garrison | Garrison Relay disabled 12736 | -7/Garrison | Triggered checkpoint 12828 | -7/Garrison | Triggered checkpoint 12840 | -7/Garrison | Triggered checkpoint 12992 | -7/Garrison | Triggered checkpoint 13035 | -7/Garrison | Lost 4 allies 13088 | -7/Garrison | Triggered checkpoint 13273 | -7/Garrison | Triggered checkpoint 13286 | -7/Garrison | Build established: Bothacker-Tank 13305 | -7/Garrison | Garrison Relay disabled 13624 | -7/Garrison | Discovered new exit (range 10) 13705 | -7/Garrison | Build established: Bothacker-Gunner 13722 | -7/Garrison | Triggered checkpoint 13880 | -7/Garrison | Triggered checkpoint 13904 | -7/Garrison | Garrison Relay disabled 13982 | -7/Garrison | Discovered new exit (range 12) 13991 | -7/Garrison | Discovered new exit (range 21) 14219 | -7/Garrison | Build established: Botlord-Gunner 14332 | -7/Garrison | Triggered checkpoint 14470 | -7/Garrison | Triggered checkpoint 14515 | -7/Garrison | Discovered new exit (range 11) 14560 | -7/Garrison | Garrison Relay disabled 14627 | -7/Garrison | Discovered new exit (range 51) 14627 | -7/Garrison | Discovered new exit (range 58) 14627 | -7/Garrison | Discovered new exit (range 29) 14627 | -7/Garrison | Discovered new exit (range 29) 14695 | -7/Garrison | Entered Factory 14695 | -7/Factory | Accompanied by 6 allies 14840 | -7/Factory | Identified exit to Garrison 14841 | -7/Factory | Entered Garrison 14841 | -7/Garrison | Accompanied by 6 allies 14883 | -7/Garrison | Triggered checkpoint 14929 | -7/Garrison | Expanded RIF knowledge: Autoassimilate 15020 | -7/Garrison | Garrison Relay disabled 15103 | -7/Garrison | Triggered checkpoint 15115 | -7/Garrison | Triggered checkpoint 15117 | -7/Garrison | Triggered checkpoint 15154 | -7/Garrison | Destroyed 8 combat bots 15163 | -7/Garrison | Lost 7 allies 15303 | -7/Garrison | Triggered checkpoint 15339 | -7/Garrison | Garrison Relay disabled 15492 | -7/Garrison | Discovered new exit (range 3) 15627 | -7/Garrison | Triggered checkpoint 15694 | -7/Garrison | Garrison Relay disabled 15735 | -7/Garrison | Triggered checkpoint 15816 | -7/Garrison | Discovered new exit (range 10) 15853 | -7/Garrison | Triggered checkpoint 15891 | -7/Garrison | Lost 3 allies 15921 | -7/Garrison | Triggered checkpoint 15931 | -7/Garrison | Garrison Relay disabled 15995 | -7/Garrison | Found embedded Infiltrators 16191 | -7/Garrison | Triggered checkpoint 16203 | -7/Garrison | Garrison Relay disabled 16354 | -7/Garrison | Garrison Relay disabled 16434 | -7/Garrison | Discovered new exit (range 10) 16499 | -7/Garrison | Expanded RIF knowledge: Threat Obfuscation 16619 | -7/Garrison | Entered Factory 16619 | -6/Factory | Accompanied by 6 allies 16619 | -6/Factory | Evolved 2 slots: Propulsion x1, Utility x1 16654 | -6/Factory | Discovered new exit (range 43) 16660 | -6/Factory | Discovered new exit (range 69) 16939 | -6/Factory | Identified exit to Lower Caves 17132 | -6/Factory | Entered Lower Caves 17132 | -6/Lower Caves | Accompanied by 6 allies 17346 | -6/Lower Caves | Learned 4 Factory zone layouts 17367 | -6/Lower Caves | Learned Factory stockpile data 17428 | -6/Lower Caves | Build established: Botlord-Skirmisher 18406 | -6/Lower Caves | Build established: Botlord-Tank 18428 | -6/Lower Caves | Spotted B-75 Beast 18439 | -6/Lower Caves | Allies destroyed B-75 Beast 18594 | -6/Lower Caves | Discovered new exit (range 10) 18789 | -6/Lower Caves | Build established: Botlord-Gunner 19089 | -6/Lower Caves | Entered another Lower Caves area 19089 | -6/Lower Caves | Accompanied by 10 allies 19099 | -6/Lower Caves | Discovered new exit (range 21) 19263 | -6/Lower Caves | Attacked by a faux Warlord 19422 | -6/Lower Caves | Learned location of 1 exit from Factory 19671 | -6/Lower Caves | Attracted the attention of an 0b10 checkpoint 19725 | -6/Lower Caves | Encountered a Warlord checkpoint 20029 | -6/Lower Caves | Spotted XQ-5P0(f) 20030 | -6/Lower Caves | Encountered a Master Thief 20031 | -6/Lower Caves | Allies destroyed XQ-5P0(f) 20031 | -6/Lower Caves | Spotted IT-ORI(f) 20032 | -6/Lower Caves | Encountered a Master Thief 20037 | -6/Lower Caves | Adv. Phase Shifter stolen by Master Thief 20057 | -6/Lower Caves | Build established: Botlord-Skirmisher 20068 | -6/Lower Caves | Lost 6 allies 20202 | -6/Lower Caves | Discovered new exit (range 14) 20672 | -6/Lower Caves | Entered Data Miner 20672 | -6/Data Miner | Accompanied by 3 allies 20672 | -6/Data Miner | Discovered new exit (range 6) 20703 | -6/Data Miner | Met Data Miner 20740 | -6/Data Miner | Learned location of Section 7 (-2) 20740 | -6/Data Miner | Acquired the access code to Warlord's prototype stash 20765 | -6/Data Miner | Received God Mode back door access code from Data Miner 20825 | -6/Data Miner | Interfaced with the Data Conduit 20981 | -6/Data Miner | Found Exp. Thermal Shield 21010 | -6/Data Miner | Entered Proximity Caves 21010 | -5/Proximity Caves | Accompanied by 3 allies 21063 | -5/Proximity Caves | Learned Factory security intel 21128 | -5/Proximity Caves | Attracted the attention of an 0b10 checkpoint 21876 | -5/Proximity Caves | Spotted B-75 Beast 21920 | -5/Proximity Caves | Allies destroyed B-75 Beast 22250 | -5/Proximity Caves | Discovered new exit (range 13) 22608 | -5/Proximity Caves | Entered Factory 22608 | -5/Factory | Accompanied by 1 ally 22608 | -5/Factory | Evolved 2 slots: Utility x2 22609 | -5/Factory | Identified exit to Factory 22613 | -5/Factory | Loaded intel: 294 machine locations 23037 | -5/Factory | Build established: Bothacker-Tank 23230 | -5/Factory | Identified exit to Garrison 23447 | -5/Factory | Fabricated B-60 Warrior (x3) 23544 | -5/Factory | Fabricated B-60 Warrior (x3) 23619 | -5/Factory | Build established: Bothacker-Skirmisher 23645 | -5/Factory | Fabricated B-60 Warrior (x3) 23666 | -5/Factory | Intercept squad dispatched 23698 | -5/Factory | Spotted Tracker 23699 | -5/Factory | Cargo convoy interrupted 23704 | -5/Factory | Allies destroyed Tracker 23707 | -5/Factory | P-70 Sage assimilated allied Warrior 6b 23721 | -5/Factory | Spotted Combat Programmer 23740 | -5/Factory | Destroyed Combat Programmer 23744 | -5/Factory | System corruption reached 10% 23752 | -5/Factory | P-70 Sage assimilated allied Warrior 6f 23781 | -5/Factory | Lost 9 allies 23812 | -5/Factory | Lost 9 parts (2n5u2w) 23813 | -5/Factory | Destroyed 13 combat bots 23923 | -5/Factory | Core integrity fell below 50% 23940 | -5/Factory | Core integrity fell below 20% 23955 | -5/Factory | Destroyed by H-71 Marshal with Heavy Mass Driver Last Messages --------------- 23934_ Relay Coupler [Brawler] destroyed. 23934_ Imp. Plasma Cutter destroyed. 23934_ Knocked back. 23934_ Slug penetrates Wall. 23934_ Knocked back. 23935_ Acquired 10 matter. 23936_ Discarded Relay Coupler [Duelist]. 23937_ Acquired 1 matter. 23938_ Dropped Huge Storage Unit. 23938_ Dropped Imp. Deuterium Engine. 23939_ Knocked back. 23940_ Acquired 6 matter. 23941_ Acquired 3 matter. 23943_ Great Axe destroyed. 23944_ Acquired 5 matter. 23945_ Slug penetrates Wall. 23945_ Knocked back. 23953_ System corrupted: Imp. VSS Leg rejected. 23953_ Acquired Imp. VSS Leg. 23955_ Imp. VSS Leg destroyed. Map ----- +----------------------------------------------------+ | #?"""""????????????????????????????????????? | | #?"""""????????????????????????????????????? | | % #??????????????????????????????????????????? | | = #??????????????????????????????????????????? | | #???##?????????????? """?"""?"""???????????? | | #??# #????????????? """?"""?"""???????????? | | #?# #?????????????? """?"""?"""???????????? | | ## #??????########? ? ??"""???????????? | | ####/## #???????# #? ????????????????? | | ???# # #?????#### """ #? """ """?? ??????????? | | ####%#########"#%%"G!! #? """ """ ????????? | | =%= %*![%H!!!!% #? """ """ ???????? | | % % !!######"""!%H ! #? """ """ != ???????? | | *[! ! #[#??#####!%* #? != ??????? | | % #???###########;## ??????? | | #???# #H ] ??????? | | ####+#""#??# # ??????? | | = % # # ################## | | % # " " " " # # #?????? | | % # " " " " + # ####### | | % | # " " " " # # + | | + " " " " # # # | | # " " " " ?# # + | | # " " " " ?# % # # | | #?" " " "??### ### # | | #?" " " "????#@ #?# # ##### | | #?" " " "????# #?# # ##### | | ? ??? ?????# ### # # | | ?????? ?????? + # # | | ? ??????? ??????# ### # # " | | ?????????????####???????# #?# # # " | | ????????????????????????## T# #?# # # | | ??????????????????????????### #?# # ##### | | ???????????????????????????## ############## | | ??????????????????????????? #??????????# | | ??????????????????????????? ############ | | ??????????????????????????? H | | ??????????????????????????? ################## | | ??????????????????????????? #????????????????? | | ???????????????????????????######????????????????? | | ?????????????????????????????????????????????????? | | ?????????????????????????????????????????????????? | | | | | | | | | | | | | | | | | +----------------------------------------------------+ Best States ------------- Heat Dissipation 86 Coolant Potential 50 Energy Generation 21 Energy Capacity 325 Matter Stores 300 Matter Capacity 300 Sight Range 20 Robot Scan Range 20 Terrain Scan Range 16 Terrain Scan Density 210 Jamming Range 14 Additional Mass Support 12 Armor Coverage 600 Resistance: KI 20 Resistance: TH 30 Evasion (%) 50 Targeting Accuracy 6 Melee Accuracy 6 Target Analysis 5 Recoil Reduction 4 Offensive Hacking 10 Defensive Hacking 22 Relay Coupler Types 5 Relay Coupler Value 101 Authchip Count 4 Item Schematics ----------------- Exp. Sensor Array | -9/Materials | Scanalyzed Signal Interpreter | -9/Materials | Scanalyzed Huge Storage Unit | -9/Materials | Scanalyzed ECM Suite | -9/Materials | Scanalyzed Hcp. Battery | -9/Materials | Scanalyzed Cld. Ion Engine | -9/Materials | Scanalyzed Plasma Cutter | -8/Materials | Scanalyzed Combat Drone Bay | -6/Data Miner | Free Lgt. Regenerative Plating | -6/Data Miner | Free Enh. Armored Leg | -6/Data Miner | Free Imp. Energy Well | -6/Data Miner | Free Neutron Cannon | -6/Data Miner | Free Field Propulsion Array | -6/Data Miner | Free Adv. Focal Shield | -6/Data Miner | Free Force Lance | -6/Data Miner | Free Biometal Leg | -6/Data Miner | Free Robot Schematics ------------------ H-66 Slayer | -6/Data Miner | Free O-32 Director | -6/Data Miner | Free G-67 Veteran | -6/Data Miner | Free E-15 Imp | -6/Data Miner | Free S-27 Virus | -6/Data Miner | Free L-41 Fighter | -6/Data Miner | Free R-10 Processor | -6/Data Miner | Free B-60 Warrior | -5/Factory | Hacked Fabricated ------------ B-60 Warrior | x3 | -5/Factory | Authchip B-60 Warrior | x3 | -5/Factory | Authchip B-60 Warrior | x3 | -5/Factory | Authchip Alien Tech Used ----------------- None Achievements -------------- None Challenges ------------ None Game ------ Seed MicrodissipatorDecoderBeam Manual? 0 Play Time 03:15:00 Cumulative 117.7 hours Start 2024.09.23 @ 16:16:47 End 2024.09.23 @ 19:42:41 Sessions 3 Manual Loads 0 Difficulty Rogue Special Mode None Game No. 60 Rogue 60 Adventurer 0 Explorer 0 Win Type - Total 0 Types 0/0/0/0/0/0/0/0/0 Lore% 48 Gallery% 65 Achievement% 53 Wizard Run 0 Options --------- Layout 0 ASCII 0 Keyboard 0 Movement Mouse Keybinds 0 Fullscreen 1 Font 24/Smallcaps Map View 183x50 Zoom Use 0% Tactical HUD 1 Map Filters NONE Filters NONE Steam 0 RUN: 8cc1c2b2-e743-4642-a8bb-930acf52cbeb